bitfinex/quotes_BTCUSD_20251230
["timestamp","ask_amount","ask_price","bid_price","bid_amount"]
[1767117621413,0.01131413,88385.0,88379.0,0.0002]
[1767117621757,0.01131413,88385.0,88379.0,0.00055522]
[1767117621964,0.28585388,88387.0,88379.0,0.00055522]
[1767117622165,0.01131413,88385.0,88379.0,0.00055522]
[1767117622359,0.011314,88386.0,88379.0,0.00055522]
[1767117622360,0.11424524,88386.0,88379.0,0.00055522]
[1767117622559,0.01131413,88385.0,88379.0,0.00055522]
[1767117623205,0.11424524,88386.0,88368.0,0.0002]
[1767117623206,0.28585464,88381.0,88368.0,0.0002]
[1767117623398,0.5497474,88380.0,88368.0,0.00030645]
[1767117624228,0.28585464,88381.0,88370.0,0.5497474]
[1767117624551,0.01131477,88380.0,88370.0,0.5497474]
[1767117624780,0.01131477,88380.0,88364.0,0.0114]
[1767117624781,0.28594,88379.0,88360.0,0.0002]
[1767117624988,0.28585554,88374.0,88360.0,0.55005404]
[1767117625117,0.0113158,88372.0,88360.0,0.55005404]
[1767117625325,0.0113158,88372.0,88360.0,0.00030664]
[1767117625326,0.28585618,88369.0,88360.0,0.00030664]
[1767117625578,0.27454,88367.0,88352.0,0.01131836]
[1767117625901,0.01131618,88369.0,88355.0,0.28477]
[1767117626066,0.01131618,88369.0,88352.0,0.011425]
[1767117626067,0.27454,88362.0,88352.0,0.00010664]
[1767117626386,0.28585721,88361.0,88352.0,0.00010664]
[1767117626550,0.34244382,88361.0,88352.0,0.00010664]
[1767117626741,0.01131746,88359.0,88352.0,0.00010664]
[1767117626942,0.28585733,88360.0,88352.0,0.00010664]
[1767117627328,0.27454,88358.0,88352.0,0.00010664]
[1767117627749,0.28585759,88358.0,88352.0,0.00010664]
[1767117627950,0.27454,88358.0,88352.0,0.00010664]
[1767117629542,0.28585759,88358.0,88352.0,0.00010664]
[1767117629716,0.27454,88358.0,88352.0,0.00010664]
[1767117629860,0.0114,88362.0,88352.0,0.00010664]
[1767117630066,0.0114,88362.0,88359.0,0.28477]
[1767117630441,0.0114,88362.0,88353.0,0.01131823]
[1767117630569,0.0114,88362.0,88353.0,0.29608823]
[1767117630772,0.0114,88362.0,88353.0,0.28477]
[1767117631120,0.0114,88364.0,88356.0,0.01131785]
[1767117631311,0.01085,88364.0,88356.0,0.29608785]
[1767117631478,0.012,88398.0,88377.0,0.01131516]
[1767117631693,0.01131157,88405.0,88380.0,1.0994948]
[1767117631919,0.05656007,88402.0,88391.0,0.5497474]
[1767117632077,0.0114,88403.0,88391.0,0.5497474]
[1767117632281,0.0114,88403.0,88392.0,0.28477]
[1767117632508,0.0114,88403.0,88391.0,0.5497474]
[1767117632509,0.01131208,88401.0,88391.0,0.5497474]
[1767117632719,0.0114,88403.0,88391.0,0.5497474]
[1767117632925,0.02281827,88403.0,88391.0,0.5497474]
[1767117633107,0.01131196,88402.0,88391.0,0.5497474]
[1767117633446,0.02281827,88403.0,88391.0,0.5497474]
[1767117633971,0.02281827,88403.0,88384.0,0.06788503]
[1767117633972,0.01131375,88388.0,88369.0,0.28477]
[1767117634173,0.56106217,88380.0,88369.0,0.28472722]
[1767117634291,0.5497474,88380.0,88369.0,0.28472722]
[1767117634489,0.01131439,88383.0,88369.0,0.28472722]
[1767117634724,0.01131452,88382.0,88369.0,0.28472722]
[1767117634990,0.01131426,88384.0,88369.0,0.28472722]
[1767117635231,0.28585413,88385.0,88369.0,0.28472722]
[1767117635432,0.01131426,88384.0,88369.0,0.28472722]
[1767117635644,0.27454,88385.0,88369.0,0.28472722]
[1767117635884,0.0114,88387.0,88373.0,0.28477]
[1767117636367,0.0114,88387.0,88371.0,0.01131592]
[1767117636368,0.01131311,88393.0,88376.0,0.01131528]
[1767117636505,0.01131388,88387.0,88368.0,0.0001197]
[1767117636710,0.28585388,88387.0,88371.0,0.01131592]
[1767117637011,0.28585388,88387.0,88376.0,0.01131528]
[1767117637012,0.27454,88387.0,88376.0,0.01131528]
[1767117637246,0.27454,88387.0,88375.0,0.01131541]
[1767117637923,0.05656499,88394.0,88375.0,0.01131541]
[1767117637924,0.06787507,88398.0,88378.0,0.29608503]
[1767117638148,0.01131311,88393.0,88379.0,0.28477]
[1767117638331,0.01131362,88389.0,88374.0,0.0114]
[1767117638527,0.01131375,88388.0,88374.0,0.0114]
[1767117639119,0.01131388,88387.0,88374.0,0.29617]
[1767117639487,0.01131375,88388.0,88374.0,0.29617]
[1767117639688,0.01131362,88389.0,88374.0,0.29617]
[1767117639909,0.01131388,88387.0,88374.0,0.29617]
[1767117640136,0.27454,88386.0,88367.0,0.34135196]
[1767117640318,0.27454,88386.0,88369.0,0.01131618]
[1767117640499,0.285854,88386.0,88369.0,0.29608618]
[1767117640698,0.285854,88386.0,88370.0,0.29608605]
[1767117641284,0.01131413,88385.0,88370.0,0.28477]
[1767117641490,0.285854,88386.0,88370.0,0.28477]
[1767117641690,0.285854,88386.0,88371.0,0.28477]
[1767117641914,0.01131426,88384.0,88371.0,0.28477]
[1767117642126,0.001099,88371.0,88368.0,0.0001197]
[1767117642695,0.0114,88374.0,88368.0,0.0001197]
[1767117645744,0.01131592,88371.0,88358.0,0.28477]
[1767117645923,0.01131567,88373.0,88358.0,0.28487664]
[1767117646121,0.01131567,88373.0,88361.0,0.28379]
[1767117646869,0.0113158,88372.0,88361.0,0.28379]
[1767117647730,0.0114,88374.0,88361.0,0.28379]
[1767117647937,0.0114,88374.0,88361.0,0.29510721]
[1767117648432,0.0114,88374.0,88363.0,0.28379]
[1767117648645,0.03003999,88406.0,88369.0,0.01131618]
[1767117648838,0.03003999,88406.0,88380.0,0.55027704]
[1767117648839,0.01131426,88384.0,88380.0,0.55027704]
[1767117649066,0.01131452,88382.0,88374.0,0.55027704]
[1767117649203,0.000549,88380.0,88374.0,0.55027704]
[1767117649603,0.01131426,88384.0,88374.0,0.55027704]
[1767117649604,0.01131375,88388.0,88374.0,0.55027704]
[1767117649846,0.0114,88387.0,88375.0,0.28379]
[1767117650051,0.0114,88387.0,88377.0,0.83406704]
[1767117650584,0.0114,88387.0,88373.0,0.01131567]
[1767117650585,0.01131336,88391.0,88387.0,0.000549]
[1767117650736,0.29266,88390.0,88377.0,0.806645]
[1767117650921,0.0114,88390.0,88378.0,0.28379]
[1767117651795,0.0114,88390.0,88380.0,0.29510477]
[1767117652116,0.05656235,88399.0,88380.0,0.28379]
[1767117652356,0.0114,88398.0,88380.0,0.28379]
[1767117652531,0.02271247,88398.0,88381.0,0.28379]
[1767117652746,0.01131285,88395.0,88381.0,0.28379]
[1767117652928,0.0114,88394.0,88379.0,0.28379]
[1767117653735,0.0114,88393.0,88379.0,0.28379]
[1767117653958,9e-05,88393.0,88379.0,0.28379]
[1767117654159,0.01131311,88393.0,88377.0,0.81796016]
[1767117654370,0.01131362,88389.0,88377.0,0.806645]
[1767117654604,0.01131324,88392.0,88377.0,1.090435]
[1767117654759,0.01131324,88392.0,88378.0,0.28379]
[1767117654947,0.01131324,88392.0,88376.0,0.01131528]
[1767117654948,0.000549,88378.0,88370.0,0.806645]
[1767117655143,0.01131439,88383.0,88370.0,1.090435]
[1767117655395,0.01131426,88384.0,88370.0,1.090435]
[1767117655797,0.01131503,88378.0,88365.0,0.28379]
[1767117655994,0.29257464,88381.0,88365.0,0.29510669]
[1767117656195,0.29257464,88381.0,88366.0,0.01131656]
[1767117656398,0.28126,88381.0,88365.0,0.28379]
[1767117656602,0.29257464,88381.0,88365.0,0.29510669]
[1767117656751,0.01131477,88380.0,88365.0,0.29510669]
[1767117656952,0.0113149,88379.0,88365.0,0.28379]
[1767117657226,0.01131477,88380.0,88365.0,0.28379]
[1767117657429,0.01131503,88378.0,88365.0,0.28379]
[1767117657713,0.29257503,88378.0,88364.0,0.0114]
[1767117657881,0.28126,88378.0,88364.0,0.0114]
[1767117658081,0.29257503,88378.0,88364.0,0.0114]
[1767117658285,0.01131503,88378.0,88365.0,0.28379]
[1767117658483,0.0227149,88379.0,88365.0,0.28379]
[1767117659021,0.01131503,88378.0,88365.0,0.28379]
[1767117659596,0.01131503,88378.0,88364.0,0.0114]
[1767117659755,0.0227149,88379.0,88364.0,0.02271682]
[1767117659961,0.05657592,88377.0,88357.0,0.01131772]
[1767117660159,0.27939,88368.0,88352.0,0.01131836]
[1767117660358,0.01131644,88367.0,88351.0,0.2851818]
[1767117660781,0.29070631,88368.0,88351.0,0.2851818]
[1767117660978,0.01131644,88367.0,88352.0,0.28489]
[1767117661215,0.0114,88371.0,88357.0,0.806645]
[1767117661382,0.27939,88369.0,88360.0,0.806645]
[1767117661561,0.01131605,88370.0,88360.0,0.806645]
[1767117661986,0.01131605,88370.0,88357.0,0.28499664]
[1767117661987,0.01131618,88369.0,88357.0,0.28499664]
[1767117662190,0.01131605,88370.0,88360.0,0.806645]
[1767117662425,0.01131618,88369.0,88360.0,0.806645]
[1767117663004,0.0114,88371.0,88360.0,0.806645]
[1767117663206,0.0114,88371.0,88357.0,0.28499664]
[1767117663436,0.0114,88371.0,88360.0,0.806645]
[1767117663607,0.05657543,88378.0,88360.0,0.81796233]
[1767117663958,0.01131375,88388.0,88372.0,0.28489]
[1767117664086,0.29070324,88392.0,88376.0,0.01131528]
[1767117664293,0.02271311,88393.0,88380.0,0.806645]
[1767117664294,0.0114,88393.0,88380.0,0.806645]
[1767117664542,0.02271311,88393.0,88380.0,0.806645]
[1767117665119,0.01131324,88392.0,88380.0,0.806645]
[1767117666104,0.0114,88393.0,88380.0,0.806645]
[1767117666283,0.02271311,88393.0,88380.0,0.806645]
[1767117666441,0.29079,88393.0,88380.0,0.806645]
[1767117667186,0.29079,88393.0,88380.0,0.81795977]
[1767117667345,0.29079,88393.0,88380.0,0.806645]
[1767117667546,0.27939,88377.0,88359.0,0.29620746]
[1767117667747,0.01131528,88376.0,88360.0,0.29629]
[1767117667969,0.01131516,88377.0,88361.0,0.29620721]
[1767117668176,0.01131541,88375.0,88362.0,0.28489]
[1767117668338,0.01131528,88376.0,88360.0,0.82936233]
[1767117668544,0.01131516,88377.0,88362.0,0.28489]
[1767117668776,0.01131528,88376.0,88363.0,0.00620427]
[1767117668953,0.01131503,88378.0,88362.0,0.29620708]
[1767117669155,0.01131516,88377.0,88362.0,0.29620708]
[1767117669374,0.29070503,88378.0,88362.0,0.28489]
[1767117669582,0.23769008,88383.0,88362.0,0.28489]
[1767117669583,0.01131567,88373.0,88362.0,0.28489]
[1767117669915,0.01131554,88374.0,88362.0,0.28489]
[1767117670117,0.29070528,88376.0,88362.0,0.28489]
[1767117670320,0.01131541,88375.0,88362.0,0.28489]
[1767117670481,0.29070528,88376.0,88362.0,0.28489]
[1767117670819,0.01131528,88376.0,88362.0,0.28489]
[1767117671116,0.01131516,88377.0,88362.0,0.29620708]
[1767117671318,0.29070464,88381.0,88376.0,0.000549]
[1767117671520,0.0113149,88379.0,88376.0,0.000549]
[1767117671871,0.0113149,88379.0,88369.0,0.28489]
[1767117672633,0.01131477,88380.0,88369.0,0.28489]
[1767117673172,0.0113149,88379.0,88369.0,0.28489]
[1767117673313,0.01131477,88380.0,88369.0,0.28489]
[1767117673314,0.06788881,88380.0,88369.0,0.28489]
[1767117673523,0.01131516,88377.0,88369.0,0.28489]
[1767117674222,0.01131503,88378.0,88369.0,0.28489]
[1767117675167,0.01131503,88378.0,88367.0,0.0114]
[1767117675168,0.01131375,88388.0,88379.0,0.28489]
[1767117675311,0.01131375,88388.0,88380.0,0.0114]
[1767117675312,0.01131388,88387.0,88380.0,0.0114]
[1767117675509,0.011314,88386.0,88380.0,0.0114]
[1767117675709,0.011314,88386.0,88380.0,0.29574]
[1767117675908,0.01131388,88387.0,88380.0,0.29574]
[1767117676425,0.011314,88386.0,88380.0,0.29574]
[1767117677465,0.01131388,88387.0,88380.0,0.29574]
[1767117677804,0.01131375,88388.0,88380.0,0.29574]
[1767117678335,0.01131388,88387.0,88380.0,0.29574]
[1767117678663,0.01131388,88387.0,88369.0,0.06789653]
[1767117678664,0.01131439,88383.0,88379.0,0.0114]
[1767117679835,0.01131503,88378.0,88377.0,0.0114]
[1767117680074,0.01131477,88380.0,88377.0,0.0114]
[1767117680931,0.01131631,88368.0,88349.0,0.0679121]
[1767117681203,0.01131656,88366.0,88357.0,0.28022664]
[1767117681417,0.01131631,88368.0,88358.0,0.28012]
[1767117681582,0.01131656,88366.0,88358.0,0.28012]
[1767117681945,0.01131631,88368.0,88358.0,0.28012]
[1767117682152,0.01131644,88367.0,88358.0,0.28012]
[1767117682349,0.01131656,88366.0,88358.0,0.28012]
[1767117682587,0.01131644,88367.0,88358.0,0.28012]
[1767117683189,0.01131605,88370.0,88358.0,0.28012]
[1767117683391,0.01131618,88369.0,88358.0,0.28012]
[1767117683797,0.01131592,88371.0,88358.0,0.28012]
[1767117683978,0.01131631,88368.0,88358.0,0.28012]
[1767117685020,0.01131644,88367.0,88358.0,0.28012]
[1767117685440,0.06789601,88371.0,88368.0,0.28012]
[1767117685441,0.05657973,88371.0,88368.0,0.28012]
[1767117685641,0.27575,88388.0,88368.0,0.28012]
[1767117685642,0.0114,88375.0,88368.0,0.28012]
[1767117686022,0.01131605,88370.0,88368.0,0.28012]
[1767117686303,0.06789444,88373.0,88358.0,0.28012]
[1767117686640,0.01131605,88370.0,88358.0,0.28012]
[1767117687036,0.01131631,88368.0,88358.0,0.28012]
[1767117687244,0.01131618,88369.0,88358.0,0.28012]
[1767117687622,0.01131644,88367.0,88358.0,0.28012]
[1767117687824,0.01131631,88368.0,88358.0,0.28012]
[1767117689057,0.01131618,88369.0,88358.0,0.28012]
[1767117689436,0.01131631,88368.0,88358.0,0.28012]
[1767117689632,0.01131618,88369.0,88358.0,0.28012]
[1767117690533,0.01131605,88370.0,88358.0,0.28012]
[1767117690879,0.01131618,88369.0,88358.0,0.28012]
[1767117691174,0.0113158,88372.0,88369.0,0.000549]
[1767117691375,0.05657632,88377.0,88360.0,0.0114]
[1767117691538,0.0113158,88372.0,88360.0,0.29152]
[1767117692159,0.01131592,88371.0,88360.0,0.29152]
[1767117692413,0.0113158,88372.0,88360.0,0.29152]
[1767117693104,0.28715,88375.0,88360.0,0.29152]
[1767117693335,0.01131503,88378.0,88372.0,0.000549]
[1767117693451,0.01131554,88374.0,88366.0,0.28012]
[1767117693650,0.01131567,88373.0,88360.0,0.29152]
[1767117693853,0.01131554,88374.0,88360.0,0.29152]
[1767117694322,0.01131528,88376.0,88360.0,0.30283733]
[1767117694522,0.01131528,88376.0,88362.0,0.28012]
[1767117695075,0.01131528,88376.0,88362.0,0.28007757]
[1767117695326,0.05657504,88379.0,88362.0,0.29139465]
[1767117695653,0.0113149,88379.0,88366.0,0.28012]
[1767117695872,0.01131516,88377.0,88367.0,0.0114]
[1767117696150,0.01131503,88378.0,88367.0,0.0114]
[1767117696326,0.01131516,88377.0,88367.0,0.0114]
[1767117696643,0.01131503,88378.0,88367.0,0.0114]
[1767117697055,0.01131516,88377.0,88367.0,0.0114]
[1767117697720,0.01131503,88378.0,88367.0,0.0114]
[1767117698034,0.01131592,88371.0,88367.0,0.0114]
[1767117699159,0.01131605,88370.0,88367.0,0.0114]
[1767117699449,0.27575,88369.0,88367.0,0.0114]
[1767117699831,0.01131592,88371.0,88367.0,0.0114]
[1767117700022,0.0113158,88372.0,88367.0,0.0114]
[1767117700221,0.01131605,88370.0,88367.0,0.0114]
[1767117700986,0.01131669,88365.0,88357.0,0.00010664]
[1767117701181,0.01131708,88362.0,88357.0,0.01150664]
[1767117701524,0.28706669,88365.0,88357.0,0.01150664]
[1767117701525,0.01131695,88363.0,88357.0,0.01150664]
[1767117701680,0.01131682,88364.0,88357.0,0.01150664]
[1767117703950,0.28706669,88365.0,88357.0,0.01150664]
[1767117704151,0.01131682,88364.0,88357.0,0.01150664]
[1767117704507,0.28706669,88365.0,88357.0,0.01150664]
[1767117704934,0.27575,88365.0,88357.0,0.01150664]
[1767117706435,0.28706669,88365.0,88357.0,0.01150664]
[1767117708497,0.01131682,88364.0,88357.0,0.01150664]
[1767117709336,0.28706669,88365.0,88357.0,0.01150664]
[1767117710050,0.01131682,88364.0,88357.0,0.01150664]
[1767117710463,0.05658412,88364.0,88357.0,0.00010664]
[1767117710651,0.06790094,88364.0,88357.0,0.00010664]
[1767117710872,0.06790094,88364.0,88358.0,0.0114]
[1767117711099,0.06790094,88364.0,88358.0,0.01135659]
[1767117711712,0.01131772,88357.0,88354.0,0.0002612]
[1767117711914,0.0113181,88354.0,88338.0,0.27264]
[1767117712091,0.0113181,88354.0,88342.0,0.0114]
[1767117712416,0.01131797,88355.0,88342.0,0.0114]
[1767117712594,0.30787785,88356.0,88342.0,0.0114]
[1767117712921,0.29656,88356.0,88343.0,0.02271951]
[1767117713113,0.29656,88356.0,88344.0,0.01131938]
[1767117713914,0.29656,88356.0,88343.0,0.02271951]
[1767117714143,0.29656,88356.0,88344.0,0.01131938]
[1767117714791,0.29656,88356.0,88345.0,0.01131925]
[1767117714962,0.29656,88361.0,88349.0,0.01131874]
[1767117715182,0.01131669,88365.0,88356.0,0.001099]
[1767117715384,0.01131682,88364.0,88351.0,0.28404]
[1767117715564,0.01131631,88368.0,88354.0,0.27264]
[1767117715766,0.01131605,88370.0,88356.0,0.27264]
[1767117715928,0.01131618,88369.0,88356.0,0.27264]
[1767117716992,0.01131644,88367.0,88356.0,0.27264]
[1767117717285,0.01811416,88366.0,88351.0,0.29535849]
[1767117717487,0.01131644,88367.0,88352.0,0.28395836]
[1767117717691,0.01131631,88368.0,88353.0,0.28395823]
[1767117717893,0.01131631,88368.0,88353.0,0.27264]
[1767117718068,0.01131644,88367.0,88353.0,0.27264]
[1767117718276,0.01131656,88366.0,88353.0,0.27264]
[1767117718680,0.01131644,88367.0,88353.0,0.27264]
[1767117718936,0.29656,88365.0,88351.0,0.0054]
[1767117719115,0.30787669,88365.0,88351.0,0.0054]
[1767117719527,0.29656,88365.0,88351.0,0.01671849]
[1767117719734,0.30787669,88365.0,88351.0,0.0054]
[1767117720133,0.01131733,88360.0,88343.0,0.01131951]
[1767117720340,0.01131772,88357.0,88350.0,0.0114]
[1767117720558,0.2977,88357.0,88350.0,0.0114]
[1767117721994,0.55044632,88361.0,88350.0,0.0114]
[1767117722228,0.2977,88379.0,88365.0,0.01131669]
[1767117722453,0.01131477,88380.0,88366.0,0.0114]
[1767117722668,0.01131477,88380.0,88369.0,0.55044632]
[1767117723082,0.01131503,88378.0,88370.0,0.27075]
[1767117723277,0.0113149,88379.0,88369.0,0.55044632]
[1767117723540,0.01131477,88380.0,88369.0,0.55044632]
[1767117723740,0.01131503,88378.0,88366.0,0.0054]
[1767117724155,0.01131516,88377.0,88366.0,0.0054]
[1767117724585,0.01131503,88378.0,88366.0,0.0054]
[1767117725824,0.01131516,88377.0,88366.0,0.0054]
[1767117726032,0.06789005,88379.0,88366.0,0.0054]
[1767117726260,0.01131503,88378.0,88366.0,0.0054]
[1767117726650,0.01131516,88377.0,88366.0,0.0054]
[1767117726855,0.01131503,88378.0,88366.0,0.0054]
[1767117727712,0.30901477,88380.0,88366.0,0.0054]
[1767117728043,0.01131503,88378.0,88366.0,0.0054]
[1767117728476,0.01131516,88377.0,88366.0,0.0054]
[1767117728882,0.01131503,88378.0,88366.0,0.0054]
[1767117729026,0.0113149,88379.0,88366.0,0.0054]
[1767117729240,0.06939961,88379.0,88366.0,0.0054]
[1767117729644,0.30901477,88380.0,88366.0,0.0054]
[1767117729934,0.0113149,88379.0,88366.0,0.0054]
[1767117730281,0.01131503,88378.0,88366.0,0.0054]
[1767117730688,0.0113149,88379.0,88366.0,0.0054]
[1767117731592,0.30901477,88380.0,88366.0,0.0054]
[1767117732005,0.06826798,88379.0,88366.0,0.0054]
[1767117732336,0.30901477,88380.0,88366.0,0.0054]
[1767117733185,0.36558889,88380.0,88366.0,0.0054]
[1767117733343,0.0113149,88379.0,88366.0,0.0054]
[1767117733771,0.30901477,88380.0,88366.0,0.0054]
[1767117734090,0.0113149,88379.0,88366.0,0.0054]
[1767117734298,0.0111223,88379.0,88366.0,0.0054]
[1767117734540,0.0113149,88379.0,88366.0,0.0054]
[1767117735096,0.2977,88378.0,88366.0,0.0054]
[1767117735306,0.01131759,88358.0,88342.0,0.01131964]
[1767117735475,0.5502529,88352.0,88343.0,0.0114]
[1767117735677,0.01131836,88352.0,88343.0,0.0114]
[1767117735834,0.2977,88354.0,88343.0,0.0114]
[1767117736495,0.2977,88354.0,88344.0,0.01131938]
[1767117736496,0.297151,88354.0,88344.0,0.01131938]
[1767117736617,0.00010642,88358.0,88346.0,0.01131913]
[1767117737060,0.00010642,88358.0,88347.0,0.011319]
[1767117738261,0.00010642,88358.0,88346.0,0.01131913]
[1767117738430,0.00010642,88358.0,88347.0,0.011319]
[1767117738629,0.00010642,88358.0,88346.0,0.01131913]
[1767117738851,0.00010642,88358.0,88347.0,0.0114]
[1767117739268,0.28313,88357.0,88347.0,0.0114]
[1767117739679,0.28313,88356.0,88347.0,0.0114]
[1767117742619,0.00010642,88358.0,88356.0,0.00055]
[1767117742821,0.00010642,88358.0,88350.0,0.01131861]
[1767117743049,0.00010642,88358.0,88352.0,0.01131836]
[1767117743367,0.00010642,88358.0,88351.0,0.01131849]
[1767117743585,0.00010642,88358.0,88350.0,0.01131861]
[1767117743737,0.00010642,88358.0,88351.0,0.01131849]
[1767117744632,0.00010642,88358.0,88350.0,0.01131861]
[1767117744833,0.00010642,88358.0,88349.0,0.01131874]
[1767117745413,0.00010642,88358.0,88348.0,0.01131887]
[1767117745595,0.00010642,88358.0,88349.0,0.01131874]
[1767117745987,0.00010642,88358.0,88349.0,0.30699874]
[1767117746195,0.54888923,88360.0,88352.0,0.30699836]
[1767117746437,0.55052394,88362.0,88352.0,0.30699836]
[1767117747035,0.28313,88369.0,88355.0,0.01131797]
[1767117747231,0.55052394,88370.0,88362.0,0.29568]
[1767117747436,0.55052394,88372.0,88363.0,0.0114]
[1767117750398,0.36242043,88378.0,88363.0,0.0114]
[1767117750598,0.01131554,88374.0,88363.0,0.0114]
[1767117750845,0.55052394,88373.0,88363.0,0.0114]
[1767117753202,0.55052394,88373.0,88363.0,0.011295]
[1767117755144,6.84e-05,88376.0,88367.0,0.01131644]
[1767117755434,0.25655121,88394.0,88375.0,0.30699541]
[1767117755435,0.83381014,88390.0,88375.0,0.30699541]
[1767117755676,0.83381014,88390.0,88378.0,0.01131503]
[1767117755677,3.2e-06,88381.0,88378.0,0.01131503]
[1767117755912,3.2e-06,88381.0,88378.0,0.30699503]
[1767117756491,3.2e-06,88381.0,88378.0,0.29568]
[1767117757680,3.2e-06,88381.0,88378.0,0.30699503]
[1767117757922,3.2e-06,88381.0,88378.0,0.36356968]
[1767117758643,3.2e-06,88381.0,88379.0,0.0114]
[1767117760577,3.2e-06,88381.0,88379.0,0.06797423]
[1767117761207,3.2e-06,88381.0,88380.0,0.0114]
[1767117762379,0.06787569,88397.0,88380.0,0.0114]
[1767117762380,0.0001562,88399.0,88388.0,0.01131375]
[1767117762591,0.0002246,88399.0,88389.0,0.56192394]
[1767117762796,0.2833546,88399.0,88390.0,0.0114]
[1767117763083,0.2833546,88399.0,88384.0,0.01131426]
[1767117763084,0.2833546,88399.0,88391.0,0.0114]
[1767117763286,0.2833546,88399.0,88391.0,0.01085]
[1767117763417,0.29466694,88399.0,88391.0,0.01085]
[1767117763618,0.01131247,88398.0,88391.0,0.01085]
[1767117764036,0.29466694,88399.0,88391.0,0.01085]
[1767117765440,0.01131247,88398.0,88391.0,0.01085]
[1767117765656,0.0113126,88397.0,88391.0,0.01085]
[1767117765858,0.01131247,88398.0,88391.0,0.01085]
[1767117766044,0.2833546,88399.0,88391.0,0.01085]
[1767117766230,0.29466694,88399.0,88391.0,0.01085]
[1767117766425,0.0113126,88397.0,88391.0,0.01085]
[1767117766712,0.28933,88394.0,88391.0,0.01085]
[1767117767403,0.0002246,88399.0,88391.0,0.01085]
[1767117767579,0.30086694,88399.0,88391.0,0.01085]
[1767117767979,0.2895546,88399.0,88391.0,0.01085]
[1767117768706,0.0002246,88399.0,88391.0,0.01085]
[1767117775175,0.0002246,88399.0,88396.0,0.01131272]
[1767117775405,0.03619253,88426.0,88380.0,0.04528]
[1767117775406,0.34589492,88394.0,88380.0,0.04528]
[1767117775720,0.54993675,88406.0,88376.0,0.30367148]
[1767117775721,0.0001556,88380.0,88376.0,0.0001562]
[1767117775944,0.0001556,88380.0,88377.0,0.01136]
[1767117776320,0.28933,88386.0,88377.0,0.01136]
[1767117776724,0.28933,88386.0,88378.0,0.01131503]
[1767117776929,0.28933,88386.0,88377.0,0.02277836]
[1767117777127,0.28933,88386.0,88378.0,0.01131503]
[1767117777330,0.28933,88393.0,88378.0,0.01131503]
[1767117777528,0.00060818,88391.0,88379.0,0.0113149]
[1767117777733,0.00060818,88391.0,88380.0,0.01131477]
[1767117777931,0.00060818,88391.0,88379.0,0.0114181]
[1767117778228,0.01192154,88391.0,88379.0,0.0001032]
[1767117778424,0.28933,88389.0,88379.0,0.0001032]
[1767117778627,0.00060818,88391.0,88379.0,2e-07]
[1767117778628,0.28933,88382.0,88379.0,2e-07]
[1767117778838,0.28933,88380.0,88373.0,0.01136]
[1767117779070,0.30064477,88380.0,88373.0,0.01136]
[1767117779558,0.28933,88380.0,88373.0,0.01136]
[1767117779942,0.28933,88380.0,88373.0,0.011307]
[1767117780499,0.28933,88380.0,88363.0,0.0679011]
[1767117780500,0.27153,88373.0,88359.0,0.0002152]
[1767117780706,0.01131836,88352.0,88343.0,0.06131752]
[1767117780900,0.01131797,88355.0,88347.0,0.01136]
[1767117780901,0.32812004,88355.0,88347.0,0.01136]
[1767117781099,0.27153,88355.0,88347.0,0.01136]
[1767117781745,0.01131644,88367.0,88355.0,0.000549]
[1767117781950,0.01131669,88365.0,88355.0,0.000549]
[1767117782203,0.27153,88365.0,88351.0,0.01131849]
[1767117783175,0.54993675,88370.0,88351.0,0.01131849]
[1767117783176,0.27153,88371.0,88365.0,0.000549]
[1767117783393,0.27153,88369.0,88365.0,0.000549]
[1767117783964,0.28284644,88367.0,88354.0,0.01136]
[1767117784077,0.01131682,88364.0,88354.0,0.01136]
[1767117784285,0.27153,88365.0,88354.0,0.0226781]
[1767117784717,0.27153,88365.0,88354.0,0.07926849]
[1767117784917,0.27153,88365.0,88354.0,0.0226781]
[1767117785132,0.27153,88365.0,88354.0,0.01136]
[1767117785939,0.28284682,88364.0,88354.0,0.01136]
[1767117786318,0.27153,88364.0,88354.0,0.01136]
[1767117787622,0.27153,88364.0,88354.0,0.0226781]
[1767117787822,0.27153,88364.0,88354.0,0.01136]
[1767117788338,0.27153,88364.0,88354.0,0.0226781]
[1767117789369,0.27153,88364.0,88354.0,0.01136]
[1767117789580,0.27153,88364.0,88354.0,0.0226781]
[1767117790462,0.27153,88364.0,88355.0,0.01131797]
[1767117790643,0.27153,88364.0,88354.0,0.0226781]
[1767117791448,0.27153,88364.0,88354.0,0.01136]
[1767117793437,0.82146675,88370.0,88354.0,0.01136]
[1767117793569,0.01131644,88367.0,88354.0,0.01136]
[1767117793996,0.28284644,88367.0,88354.0,0.01136]
[1767117794310,0.27153,88367.0,88354.0,0.01136]
[1767117794516,0.54993675,88370.0,88357.0,0.01131772]
[1767117794656,0.54993675,88370.0,88356.0,0.06790659]
[1767117794854,0.54993675,88370.0,88355.0,0.01131797]
[1767117795074,0.82146675,88370.0,88356.0,0.01131785]
[1767117795275,0.8327828,88370.0,88356.0,0.01131785]
[1767117795498,0.01131631,88368.0,88354.0,0.01136]
[1767117795728,0.06789906,88367.0,88354.0,0.01136]
[1767117795938,0.27153,88363.0,88354.0,0.01136]
[1767117796090,0.28284695,88363.0,88354.0,0.01136]
[1767117796290,0.01131708,88362.0,88354.0,0.01136]
[1767117796490,0.28284695,88363.0,88354.0,0.01136]
[1767117797196,0.27153,88363.0,88354.0,0.01136]
[1767117800136,0.54993675,88364.0,88330.0,0.01132118]
[1767117800137,0.29146,88348.0,88330.0,0.01132118]
[1767117800336,0.0113199,88340.0,88328.0,0.0114]
[1767117800646,0.01131951,88343.0,88328.0,0.0114]
[1767117800882,0.54993675,88343.0,88329.0,0.28221]
[1767117801060,0.54993675,88343.0,88330.0,0.01132118]
[1767117801465,0.54938775,88343.0,88334.0,0.01132066]
[1767117801688,0.29146,88345.0,88334.0,0.01132066]
[1767117801689,0.01138321,88348.0,88334.0,0.28221]
[1767117801895,6.434e-05,88348.0,88334.0,0.28221]
[1767117802070,6.434e-05,88348.0,88336.0,0.01132041]
[1767117802252,6.434e-05,88348.0,88337.0,0.28221]
[1767117802454,6.434e-05,88348.0,88337.0,0.29353028]
[1767117802879,6.434e-05,88348.0,88338.0,0.01132015]
[1767117803160,6.434e-05,88348.0,88337.0,0.28221]
[1767117804233,6.434e-05,88348.0,88337.0,0.29353028]
[1767117804433,6.434e-05,88348.0,88341.0,0.01131977]
[1767117804619,6.434e-05,88348.0,88342.0,0.28221]
[1767117804844,3.4e-07,88348.0,88342.0,0.01131964]
[1767117804974,0.05658649,88361.0,88340.0,0.0113199]